[Event "IV Elllobregat Open Chess Tmnt"]
[Site "Sant Boi de Llobregat, Spain"]
[Date "2023.12.01"]
[Round "2.19"]
[White "Bharath, Subramaniyam H"]
[Black "Vega Gutierrez, Sabrina"]
[Result "1/2-1/2"]
[TimeControl "90min/40moves + 15min/end + 30sec from move 1"]
[WhiteFideId "46634827"]
[BlackFideId "2219026"]
[WhiteElo "2504"]
[BlackElo "2381"]

1. e4 {[%clk 01:30:55]} {[%emt 00:00:05]} c5 {[%clk 01:27:35]} {[%emt
00:03:25]} 2. Nf3 {[%clk 01:31:16]} {[%emt 00:00:09]} Nc6 {[%clk 01:27:33]}
{[%emt 00:00:32]} 3. Nc3 {[%clk 01:31:28]} {[%emt 00:00:18]} Nf6 {[%clk
01:27:37]} {[%emt 00:00:25]} 4. Bb5 {[%clk 01:31:47]} {[%emt 00:00:12]} Qc7
{[%clk 01:25:48]} {[%emt 00:02:19]} 5. O-O {[%clk 01:32:09]} {[%emt 00:00:08]}
Nd4 {[%clk 01:25:00]} {[%emt 00:01:19]} 6. Re1 {[%clk 01:32:21]} {[%emt
00:00:18]} a6 {[%clk 01:21:46]} {[%emt 00:03:44]} 7. Bf1 {[%clk 01:32:44]}
{[%emt 00:00:07]} e5 {[%clk 01:14:37]} {[%emt 00:07:39]} 8. Nd5 {[%clk
01:30:07]} {[%emt 00:03:06]} Nxd5 {[%clk 01:11:52]} {[%emt 00:03:14]} 9. exd5
{[%clk 01:30:35]} {[%emt 00:00:03]} d6 {[%clk 01:11:46]} {[%emt 00:00:35]} 10.
Nxd4 {[%clk 01:30:13]} {[%emt 00:00:52]} cxd4 {[%clk 01:12:08]} {[%emt
00:00:09]} 11. c3 {[%clk 01:30:30]} {[%emt 00:00:13]} dxc3 {[%clk 01:09:39]}
{[%emt 00:02:58]} 12. bxc3 {[%clk 01:30:45]} {[%emt 00:00:16]} Be7 {[%clk
01:09:21]} {[%emt 00:00:47]} 13. d4 {[%clk 01:30:23]} {[%emt 00:00:53]} O-O
{[%clk 01:03:14]} {[%emt 00:06:36]} 14. dxe5 {[%clk 01:30:34]} {[%emt
00:00:20]} dxe5 {[%clk 01:03:39]} {[%emt 00:00:05]} 15. c4 {[%clk 01:30:48]}
{[%emt 00:00:16]} Bd7 {[%clk 00:40:22]} {[%emt 00:23:46]} 16. Qb3 {[%clk
01:09:39]} {[%emt 00:21:39]} b5 {[%clk 00:32:45]} {[%emt 00:08:07]} 17. Bb2
{[%clk 00:54:10]} {[%emt 00:16:00]} Bd6 {[%clk 00:30:54]} {[%emt 00:02:21]} 18.
cxb5 {[%clk 00:38:21]} {[%emt 00:16:20]} axb5 {[%clk 00:31:15]} {[%emt
00:00:08]} 19. Bxb5 {[%clk 00:32:13]} {[%emt 00:06:39]} Rfb8 {[%clk 00:19:39]}
{[%emt 00:12:06]} 20. a4 {[%clk 00:31:04]} {[%emt 00:01:39]} Qb7 {[%clk
00:19:35]} {[%emt 00:00:33]} 21. Rac1 {[%clk 00:24:49]} {[%emt 00:06:46]} Bxb5
{[%clk 00:14:12]} {[%emt 00:05:54]} 22. axb5 {[%clk 00:23:11]} {[%emt
00:02:08]} Ra5 {[%clk 00:09:55]} {[%emt 00:04:46]} 23. b6 {[%clk 00:10:20]}
{[%emt 00:13:21]} Qxd5 {[%clk 00:08:31]} {[%emt 00:01:54]} 24. Qg3 {[%clk
00:04:55]} {[%emt 00:05:56]} Qb7 {[%clk 00:05:16]} {[%emt 00:03:45]} 25. Bd4
{[%clk 00:02:37]} {[%emt 00:02:47]} exd4 {[%clk 00:01:01]} {[%emt 00:04:45]} 26.
Qxd6 {[%clk 00:03:06]} {[%emt 00:00:02]} Rd5 {[%clk 00:01:19]} {[%emt
00:00:11]} 27. Qb4 {[%clk 00:01:33]} {[%emt 00:02:04]} Rdd8 {[%clk 00:01:19]}
{[%emt 00:00:29]} 28. Rb1 {[%clk 00:00:52]} {[%emt 00:01:11]} d3 {[%clk
00:01:08]} {[%emt 00:00:41]} 29. Red1 {[%clk 00:01:21]} {[%emt 00:00:02]} g6
{[%clk 00:01:22]} {[%emt 00:00:16]} 30. h4 {[%clk 00:01:28]} {[%emt 00:00:22]}
h5 {[%clk 00:01:45]} {[%emt 00:00:07]} 31. Rb2 {[%clk 00:00:34]} {[%emt
00:01:25]} Qc6 {[%clk 00:01:09]} {[%emt 00:01:05]} 32. Rdb1 {[%clk 00:00:43]}
{[%emt 00:00:21]} Rb7 {[%clk 00:00:53]} {[%emt 00:00:46]} 33. Qd2 {[%clk
00:01:01]} {[%emt 00:00:13]} Rd6 {[%clk 00:00:52]} {[%emt 00:00:32]} 34. Qe3
{[%clk 00:00:44]} {[%emt 00:00:47]} d2 {[%clk 00:00:34]} {[%emt 00:00:48]} 35.
Rxd2 {[%clk 00:00:56]} {[%emt 00:00:18]} Rxb6 {[%clk 00:00:43]} {[%emt
00:00:21]} 36. Rxb6 {[%clk 00:00:58]} {[%emt 00:00:28]} Qxb6 {[%clk 00:00:32]}
{[%emt 00:00:41]} 37. Qe8+ {[%clk 00:00:38]} {[%emt 00:00:50]} Kg7 {[%clk
00:01:00]} {[%emt 00:00:01]} 38. Qe5+ {[%clk 00:00:48]} {[%emt 00:00:19]} Rf6
{[%clk 00:01:30]} {[%emt 00:00:01]} 39. g3 {[%clk 00:00:40]} {[%emt 00:00:39]}
Qe6 {[%clk 00:01:16]} {[%emt 00:00:43]} 40. Qd4 {[%clk 00:15:44]} {[%emt
00:00:25]} Qb6 {[%clk 00:16:35]} {[%emt 00:00:11]} 41. Qe5 {[%clk 00:12:45]}
{[%emt 00:03:30]} Qe6 {[%clk 00:16:51]} {[%emt 00:00:14]} 42. Qd4 {[%clk
00:13:04]} {[%emt 00:00:11]} Qb6 {[%clk 00:17:15]} {[%emt 00:00:06]} 43. Qe5
{[%clk 00:13:28]} {[%emt 00:00:06]} 1/2-1/2

[Event "IV Elllobregat Open Chess Tmnt"]
[Site "Sant Boi de Llobregat, Spain"]
[Date "2023.12.01"]
[Round "2.20"]
[White "Vetokhin, Savva"]
[Black "Ioannidis, Evgenios"]
[Result "0-1"]
[TimeControl "90min/40moves + 15min/end + 30sec from move 1"]
[WhiteFideId "44144474"]
[BlackFideId "4229274"]
[WhiteElo "2403"]
[BlackElo "2502"]

1. d4 {[%clk 01:30:57]} {[%emt 00:00:02]} d5 {[%clk 01:30:48]} {[%emt
00:00:12]} 2. c4 {[%clk 01:31:15]} {[%emt 00:00:12]} c6 {[%clk 01:31:02]}
{[%emt 00:00:16]} 3. Nc3 {[%clk 01:31:32]} {[%emt 00:00:13]} Nf6 {[%clk
01:31:23]} {[%emt 00:00:09]} 4. e3 {[%clk 01:31:53]} {[%emt 00:00:09]} e6
{[%clk 01:31:20]} {[%emt 00:00:33]} 5. Nf3 {[%clk 01:32:14]} {[%emt 00:00:09]}
Nbd7 {[%clk 01:31:37]} {[%emt 00:00:13]} 6. Be2 {[%clk 01:32:15]} {[%emt
00:00:30]} dxc4 {[%clk 01:31:34]} {[%emt 00:00:33]} 7. a4 {[%clk 01:32:23]}
{[%emt 00:00:21]} Bd6 {[%clk 01:31:45]} {[%emt 00:00:19]} 8. Nd2 {[%clk
01:32:14]} {[%emt 00:00:39]} O-O {[%clk 01:32:06]} {[%emt 00:00:09]} 9. Nxc4
{[%clk 01:31:55]} {[%emt 00:00:48]} Bc7 {[%clk 01:32:31]} {[%emt 00:00:06]} 10.
b3 {[%clk 01:29:35]} {[%emt 00:02:50]} Nd5 {[%clk 01:31:36]} {[%emt 00:01:25]}
11. Bb2 {[%clk 01:23:14]} {[%emt 00:06:51]} a5 {[%emt 00:01:52]} 12. O-O {[%clk
01:19:07]} {[%emt 00:04:36]} b5 {[%clk 01:25:13]} {[%emt 00:05:32]} 13. Nxd5
{[%clk 01:06:38]} {[%emt 00:12:58]} cxd5 {[%clk 01:19:46]} {[%emt 00:05:58]} 14.
Ne5 {[%clk 00:58:16]} {[%emt 00:08:51]} b4 {[%clk 01:07:51]} {[%emt 00:12:26]}
15. Rc1 {[%clk 00:55:25]} {[%emt 00:03:20]} Nf6 {[%clk 00:54:02]} {[%emt
00:14:19]} 16. Bd3 {[%clk 00:50:27]} {[%emt 00:05:28]} Bb7 {[%clk 00:51:50]}
{[%emt 00:02:42]} 17. Qe2 {[%clk 00:49:44]} {[%emt 00:01:12]} Ne4 {[%clk
00:46:29]} {[%emt 00:05:51]} 18. f3 {[%clk 00:45:32]} {[%emt 00:04:42]} Nf6
{[%clk 00:43:47]} {[%emt 00:03:12]} 19. Rc2 {[%clk 00:45:17]} {[%emt 00:00:44]}
Qd6 {[%clk 00:42:08]} {[%emt 00:02:10]} 20. Rfc1 {[%clk 00:45:00]} {[%emt
00:00:47]} Rfc8 {[%clk 00:42:21]} {[%emt 00:00:17]} 21. Bb5 {[%clk 00:44:17]}
{[%emt 00:01:13]} Bb6 {[%clk 00:41:01]} {[%emt 00:01:49]} 22. Bc6 {[%clk
00:43:46]} {[%emt 00:01:01]} Bxc6 {[%clk 00:39:19]} {[%emt 00:02:13]} 23. Rxc6
{[%clk 00:44:04]} {[%emt 00:00:11]} Rxc6 {[%clk 00:38:54]} {[%emt 00:00:55]} 24.
Rxc6 {[%clk 00:44:28]} {[%emt 00:00:06]} Qd8 {[%clk 00:39:20]} {[%emt
00:00:04]} 25. Qb5 {[%clk 00:41:35]} {[%emt 00:03:22]} Rb8 {[%clk 00:38:53]}
{[%emt 00:00:58]} 26. Qa6 {[%clk 00:40:44]} {[%emt 00:01:21]} Ne8 {[%clk
00:35:46]} {[%emt 00:03:37]} 27. Rc1 {[%clk 00:39:38]} {[%emt 00:01:35]} Ra8
{[%clk 00:35:18]} {[%emt 00:00:59]} 28. Qd3 {[%clk 00:34:57]} {[%emt 00:05:11]}
Nd6 {[%clk 00:33:52]} {[%emt 00:01:56]} 29. Nc6 {[%clk 00:31:18]} {[%emt
00:04:09]} Qe8 {[%clk 00:33:29]} {[%emt 00:00:53]} 30. Ne5 {[%clk 00:29:09]}
{[%emt 00:02:39]} f6 {[%clk 00:30:35]} {[%emt 00:03:24]} 31. Ng4 {[%clk
00:27:45]} {[%emt 00:01:54]} Rc8 {[%clk 00:30:53]} {[%emt 00:00:13]} 32. Rxc8
{[%clk 00:26:52]} {[%emt 00:01:23]} Qxc8 {[%clk 00:31:16]} {[%emt 00:00:06]} 33.
Nf2 {[%clk 00:27:13]} {[%emt 00:00:07]} Qc6 {[%clk 00:31:06]} {[%emt 00:00:41]}
34. Kf1 {[%clk 00:25:22]} {[%emt 00:02:20]} Bc7 {[%clk 00:30:43]} {[%emt
00:00:54]} 35. g3 {[%clk 00:19:29]} {[%emt 00:06:23]} Nf5 {[%clk 00:27:47]}
{[%emt 00:03:26]} 36. e4 {[%clk 00:18:36]} {[%emt 00:01:23]} Nd6 {[%clk
00:28:09]} {[%emt 00:00:08]} 37. Ke2 {[%clk 00:17:41]} {[%emt 00:01:24]} h5
{[%clk 00:28:23]} {[%emt 00:00:17]} 38. exd5 {[%clk 00:13:02]} {[%emt
00:05:09]} Qxd5 {[%clk 00:27:54]} {[%emt 00:00:58]} 39. Nd1 {[%clk 00:13:28]}
{[%emt 00:00:05]} Nf5 {[%clk 00:24:13]} {[%emt 00:04:11]} 40. Ne3 {[%clk
00:26:15]} {[%emt 00:02:43]} Nxe3 {[%clk 00:39:32]} {[%emt 00:00:11]} 41. Kxe3
{[%clk 00:25:39]} {[%emt 00:01:04]} h4 {[%clk 00:39:23]} {[%emt 00:00:40]} 42.
Kf2 {[%clk 00:22:43]} {[%emt 00:03:26]} hxg3+ {[%clk 00:39:30]} {[%emt
00:00:24]} 43. hxg3 {[%clk 00:23:04]} {[%emt 00:00:08]} Qh5 {[%clk 00:39:54]}
{[%emt 00:00:06]} 44. Qc4 {[%clk 00:19:58]} {[%emt 00:03:36]} Qh2+ {[%clk
00:40:19]} {[%emt 00:00:05]} 45. Ke3 {[%clk 00:20:22]} {[%emt 00:00:05]} Qg1+
{[%clk 00:40:33]} {[%emt 00:00:17]} 46. Ke2 {[%clk 00:20:47]} {[%emt 00:00:05]}
Qg2+ {[%clk 00:31:49]} {[%emt 00:09:15]} 47. Ke3 {[%clk 00:21:05]} {[%emt
00:00:12]} Bxg3 {[%clk 00:32:10]} {[%emt 00:00:10]} 48. Qxe6+ {[%clk 00:20:24]}
{[%emt 00:01:10]} Kh7 {[%clk 00:32:33]} {[%emt 00:00:06]} 49. Qf5+ {[%clk
00:16:02]} {[%emt 00:04:52]} Kh6 {[%clk 00:32:59]} {[%emt 00:00:04]} 50. Bc1
{[%clk 00:15:33]} {[%emt 00:01:00]} Qg1+ {[%clk 00:32:56]} {[%emt 00:00:32]} 51.
Ke4+ {[%clk 00:12:55]} {[%emt 00:03:08]} Qxc1 {[%clk 00:33:20]} {[%emt
00:00:06]} 52. Qh3+ {[%clk 00:13:22]} {[%emt 00:00:03]} Kg6 {[%clk 00:33:44]}
{[%emt 00:00:06]} 53. Qxg3+ {[%clk 00:13:46]} {[%emt 00:00:05]} Kf7 {[%clk
00:34:09]} {[%emt 00:00:05]} 54. Qh2 {[%clk 00:08:43]} {[%emt 00:05:33]} Qc6+
{[%clk 00:27:30]} {[%emt 00:07:08]} 55. d5 {[%clk 00:07:35]} {[%emt 00:01:38]}
f5+ {[%clk 00:27:41]} {[%emt 00:00:20]} 56. Kxf5 {[%clk 00:07:54]} {[%emt
00:00:10]} Qxd5+ {[%clk 00:28:05]} {[%emt 00:00:06]} 57. Kg4 {[%clk 00:07:18]}
{[%emt 00:01:06]} Qe6+ {[%clk 00:28:20]} {[%emt 00:00:16]} 58. Kg3 {[%clk
00:07:20]} {[%emt 00:00:28]} Qg6+ {[%clk 00:28:40]} {[%emt 00:00:09]} 59. Kf2
{[%clk 00:06:20]} {[%emt 00:01:31]} Qc2+ {[%clk 00:29:06]} {[%emt 00:00:04]} 60.
Kg3 {[%clk 00:06:46]} {[%emt 00:00:04]} Qxh2+ {[%clk 00:29:33]} {[%emt
00:00:03]} 61. Kxh2 {[%clk 00:07:10]} {[%emt 00:00:05]} Ke6 {[%clk 00:29:58]}
{[%emt 00:00:06]} 62. Kg3 {[%clk 00:06:35]} {[%emt 00:01:05]} Ke5 {[%clk
00:30:22]} {[%emt 00:00:07]} 63. Kg4 {[%clk 00:06:58]} {[%emt 00:00:06]} Kd4
{[%clk 00:30:49]} {[%emt 00:00:03]} 64. f4 {[%clk 00:07:22]} {[%emt 00:00:06]}
Kc3 {[%clk 00:31:16]} {[%emt 00:00:03]} 0-1

[Event "IV Elllobregat Open Chess Tmnt"]
[Site "Sant Boi de Llobregat, Spain"]
[Date "2023.12.01"]
[Round "2.21"]
[White "Abdisalimov, Abdimalik"]
[Black "Laddha, Shubh Jayesh"]
[Result "1-0"]
[TimeControl "90min/40moves + 15min/end + 30sec from move 1"]
[WhiteFideId "14206323"]
[BlackFideId "30942799"]
[WhiteElo "2496"]
[BlackElo "2373"]

1. Nf3 {[%clk 01:30:33]} {[%emt 00:00:26]} d5 {[%clk 01:30:53]} {[%emt
00:00:07]} 2. e3 {[%clk 01:30:58]} {[%emt 00:00:06]} Nf6 {[%clk 01:30:44]}
{[%emt 00:00:39]} 3. c4 {[%clk 01:31:22]} {[%emt 00:00:06]} c6 {[%clk
01:30:57]} {[%emt 00:00:17]} 4. Nc3 {[%clk 01:31:48]} {[%emt 00:00:04]} e6
{[%clk 01:31:18]} {[%emt 00:00:10]} 5. b3 {[%clk 01:32:13]} {[%emt 00:00:05]}
Bd6 {[%clk 01:30:37]} {[%emt 00:01:11]} 6. Bb2 {[%clk 01:32:18]} {[%emt
00:00:25]} O-O {[%clk 01:29:44]} {[%emt 00:01:22]} 7. Qc2 {[%clk 01:30:57]}
{[%emt 00:01:51]} e5 {[%clk 01:28:32]} {[%emt 00:01:42]} 8. d4 {[%clk
01:00:00]} {[%emt 00:31:27]} Nbd7 {[%clk 01:23:49]} {[%emt 00:05:13]} 9. Be2
{[%clk 00:56:58]} {[%emt 00:03:32]} e4 {[%clk 01:22:52]} {[%emt 00:01:28]} 10.
Nd2 {[%clk 00:56:25]} {[%emt 00:01:03]} Re8 {[%clk 01:21:38]} {[%emt 00:01:44]}
11. g4 {[%clk 00:52:47]} {[%emt 00:04:08]} Nf8 {[%clk 01:18:51]} {[%emt
00:03:17]} 12. g5 {[%clk 00:48:42]} {[%emt 00:04:36]} Ng4 {[%clk 01:18:13]}
{[%emt 00:01:07]} 13. cxd5 {[%clk 00:29:08]} {[%emt 00:20:04]} cxd5 {[%clk
01:17:32]} {[%emt 00:01:12]} 14. Nxd5 {[%clk 00:26:32]} {[%emt 00:03:07]} Qxg5
{[%clk 01:17:21]} {[%emt 00:00:41]} 15. Nc7 {[%clk 00:26:53]} {[%emt 00:00:09]}
Nxf2 {[%clk 01:17:09]} {[%emt 00:00:42]} 16. Nxe8 {[%clk 00:25:44]} {[%emt
00:01:40]} Qh4 {[%clk 01:16:30]} {[%emt 00:01:09]} 17. Rg1 {[%clk 00:16:32]}
{[%emt 00:09:41]} Ng4+ {[%clk 00:43:49]} {[%emt 00:33:11]} 18. Kd1 {[%clk
00:17:00]} {[%emt 00:00:03]} Nxe3+ {[%clk 00:44:08]} {[%emt 00:00:10]} 19. Kc1
{[%clk 00:17:29]} {[%emt 00:00:01]} Nxc2 {[%clk 00:44:17]} {[%emt 00:00:21]} 20.
Rxg7+ {[%clk 00:17:55]} {[%emt 00:00:03]} Kh8 {[%clk 00:44:42]} {[%emt
00:00:05]} 21. Rxf7 {[%clk 00:18:19]} {[%emt 00:00:05]} Ng6 {[%clk 00:38:33]}
{[%emt 00:06:39]} 22. Kxc2 {[%clk 00:15:41]} {[%emt 00:03:09]} Bg4 {[%clk
00:27:54]} {[%emt 00:11:09]} 23. d5+ {[%clk 00:12:45]} {[%emt 00:03:26]} Kg8
{[%clk 00:28:13]} {[%emt 00:00:11]} 24. Rg7+ {[%clk 00:13:01]} {[%emt
00:00:14]} Kf8 {[%clk 00:28:31]} {[%emt 00:00:11]} 25. Nxd6 {[%clk 00:10:57]}
{[%emt 00:02:34]} Bxe2 {[%clk 00:27:51]} {[%emt 00:01:10]} 26. Rf7+ {[%clk
00:10:56]} {[%emt 00:00:32]} Kg8 {[%clk 00:28:09]} {[%emt 00:00:12]} 27. N2xe4
{[%clk 00:08:53]} {[%emt 00:02:33]} Rc8+ {[%clk 00:10:53]} {[%emt 00:17:46]} 28.
Kd2 {[%clk 00:08:56]} {[%emt 00:00:27]} Qh6+ {[%clk 00:08:48]} {[%emt
00:02:34]} 29. Kxe2 {[%clk 00:09:19]} {[%emt 00:00:08]} Rc2+ {[%clk 00:07:49]}
{[%emt 00:01:29]} 30. Kd3 {[%clk 00:09:26]} {[%emt 00:00:24]} Rxb2 {[%clk
00:07:38]} {[%emt 00:00:40]} 31. Nf6+ {[%clk 00:09:46]} {[%emt 00:00:10]} Kh8
{[%clk 00:08:03]} {[%emt 00:00:06]} 32. Rxh7+ {[%clk 00:10:10]} {[%emt
00:00:06]} Qxh7 {[%clk 00:08:28]} {[%emt 00:00:05]} 33. Nxh7 {[%clk 00:10:37]}
{[%emt 00:00:03]} Kxh7 {[%clk 00:08:49]} {[%emt 00:00:09]} 34. Nxb7 {[%clk
00:10:54]} {[%emt 00:00:13]} Rxh2 {[%clk 00:09:03]} {[%emt 00:00:15]} 35. d6
{[%clk 00:10:40]} {[%emt 00:00:45]} Ne5+ {[%clk 00:07:53]} {[%emt 00:01:40]} 36.
Kd4 {[%clk 00:10:51]} {[%emt 00:00:18]} Nd7 {[%clk 00:08:12]} {[%emt 00:00:12]}
37. Re1 {[%clk 00:10:28]} {[%emt 00:00:53]} Kg6 {[%clk 00:08:23]} {[%emt
00:00:19]} 38. Re7 {[%clk 00:09:55]} {[%emt 00:01:04]} Nb6 {[%clk 00:08:02]}
{[%emt 00:00:51]} 39. Nc5 {[%clk 00:10:03]} {[%emt 00:00:22]} Rd2+ {[%clk
00:06:10]} {[%emt 00:02:21]} 40. Nd3 {[%clk 00:24:56]} {[%emt 00:00:37]} Kf6
{[%clk 00:21:15]} {[%emt 00:00:26]} 41. Rxa7 {[%clk 00:25:21]} {[%emt
00:00:05]} Ke6 {[%clk 00:21:11]} {[%emt 00:00:34]} 42. Kc3 {[%clk 00:18:51]}
{[%emt 00:07:00]} Rd1 {[%clk 00:19:56]} {[%emt 00:01:45]} 43. Ra6 {[%clk
00:15:37]} {[%emt 00:03:44]} Nd5+ {[%clk 00:18:38]} {[%emt 00:01:48]} 44. Kc4
{[%clk 00:15:30]} {[%emt 00:00:37]} Ne3+ {[%clk 00:18:33]} {[%emt 00:00:34]} 45.
Kd4 {[%clk 00:15:55]} {[%emt 00:00:05]} Nf5+ {[%clk 00:18:51]} {[%emt
00:00:12]} 46. Kc3 {[%clk 00:16:22]} {[%emt 00:00:02]} Nxd6 {[%clk 00:19:01]}
{[%emt 00:00:21]} 47. Nb2 {[%clk 00:16:41]} {[%emt 00:00:11]} Rc1+ {[%clk
00:17:47]} {[%emt 00:01:44]} 48. Kd2 {[%clk 00:17:09]} {[%emt 00:00:02]} 1-0

[Event "IV Elllobregat Open Chess Tmnt"]
[Site "Sant Boi de Llobregat, Spain"]
[Date "2023.12.01"]
[Round "2.22"]
[White "Ootes, Lars"]
[Black "Erdogmus, Yagiz Kaan"]
[Result "0-1"]
[TimeControl "90min/40moves + 15min/end + 30sec from move 1"]
[WhiteFideId "1019708"]
[BlackFideId "44599790"]
[WhiteElo "2389"]
[BlackElo "2496"]

1. e4 {[%clk 01:27:38]} {[%emt 00:03:22]} c5 {[%clk 01:30:57]} {[%emt
00:00:03]} 2. Nf3 {[%clk 01:27:43]} {[%emt 00:00:24]} d6 {[%clk 01:31:25]}
{[%emt 00:00:02]} 3. d4 {[%clk 01:27:41]} {[%emt 00:00:32]} cxd4 {[%clk
01:31:49]} {[%emt 00:00:07]} 4. Nxd4 {[%clk 01:28:00]} {[%emt 00:00:11]} Nf6
{[%clk 01:32:11]} {[%emt 00:00:09]} 5. Nc3 {[%clk 01:28:22]} {[%emt 00:00:08]}
a6 {[%clk 01:32:35]} {[%emt 00:00:06]} 6. Bg5 {[%clk 01:28:26]} {[%emt
00:00:25]} e6 {[%clk 01:32:53]} {[%emt 00:00:13]} 7. f4 {[%clk 01:28:12]}
{[%emt 00:00:44]} h6 {[%clk 01:33:08]} {[%emt 00:00:15]} 8. Bh4 {[%clk
01:28:11]} {[%emt 00:00:30]} Qb6 {[%clk 01:33:19]} {[%emt 00:00:19]} 9. a3
{[%clk 01:27:47]} {[%emt 00:00:54]} Nc6 {[%clk 01:33:19]} {[%emt 00:00:30]} 10.
Bf2 {[%clk 01:25:34]} {[%emt 00:02:44]} Qc7 {[%clk 01:33:44]} {[%emt 00:00:05]}
11. Bd3 {[%clk 01:14:21]} {[%emt 00:11:44]} Be7 {[%clk 01:17:19]} {[%emt
00:16:54]} 12. Qe2 {[%clk 01:02:42]} {[%emt 00:12:08]} O-O {[%clk 01:02:50]}
{[%emt 00:14:59]} 13. Nxc6 {[%clk 00:33:50]} {[%emt 00:29:22]} bxc6 {[%clk
01:02:08]} {[%emt 00:01:13]} 14. g4 {[%clk 00:33:21]} {[%emt 00:00:59]} e5
{[%clk 00:27:17]} {[%emt 00:35:21]} 15. g5 {[%clk 00:21:11]} {[%emt 00:12:40]}
hxg5 {[%clk 00:17:12]} {[%emt 00:10:35]} 16. fxg5 {[%clk 00:21:17]} {[%emt
00:00:24]} Bg4 {[%clk 00:16:37]} {[%emt 00:01:05]} 17. gxf6 {[%clk 00:12:48]}
{[%emt 00:08:59]} Bxe2 {[%clk 00:17:02]} {[%emt 00:00:05]} 18. fxe7 {[%clk
00:13:14]} {[%emt 00:00:03]} Qxe7 {[%clk 00:17:27]} {[%emt 00:00:06]} 19. Nxe2
{[%clk 00:13:11]} {[%emt 00:00:33]} f5 {[%clk 00:17:25]} {[%emt 00:00:33]} 20.
exf5 {[%clk 00:07:16]} {[%emt 00:06:25]} e4 {[%clk 00:17:11]} {[%emt 00:00:44]}
21. Bc4+ {[%clk 00:07:42]} {[%emt 00:00:04]} d5 {[%clk 00:17:39]} {[%emt
00:00:01]} 22. Ba2 {[%clk 00:05:51]} {[%emt 00:02:22]} Rxf5 {[%clk 00:16:14]}
{[%emt 00:01:55]} 23. Be3 {[%clk 00:01:54]} {[%emt 00:04:27]} Rf3 {[%clk
00:15:59]} {[%emt 00:00:45]} 24. Kd2 {[%clk 00:02:22]} {[%emt 00:00:02]} Raf8
{[%clk 00:14:17]} {[%emt 00:02:12]} 25. Rag1 {[%clk 00:02:39]} {[%emt
00:00:13]} Rxe3 {[%clk 00:11:08]} {[%emt 00:03:39]} 26. Kxe3 {[%clk 00:03:07]}
{[%emt 00:00:02]} Qc5+ {[%clk 00:11:33]} {[%emt 00:00:05]} 27. Kd2 {[%clk
00:03:28]} {[%emt 00:00:10]} Rf2 {[%clk 00:11:43]} {[%emt 00:00:19]} 28. Re1
{[%clk 00:02:52]} {[%emt 00:01:06]} a5 {[%clk 00:04:39]} {[%emt 00:07:35]} 29.
h4 {[%clk 00:01:51]} {[%emt 00:01:30]} Qb5 {[%clk 00:04:10]} {[%emt 00:00:59]}
30. Rh3 {[%clk 00:00:54]} {[%emt 00:01:27]} Qxb2 {[%clk 00:04:00]} {[%emt
00:00:40]} 31. Bb3 {[%clk 00:01:10]} {[%emt 00:00:15]} a4 {[%clk 00:03:50]}
{[%emt 00:00:39]} 32. Ke3 {[%clk 00:00:43]} {[%emt 00:00:57]} Rxe2+ {[%clk
00:02:00]} {[%emt 00:02:19]} 33. Kxe2 {[%clk 00:01:11]} {[%emt 00:00:02]} axb3
{[%clk 00:02:24]} {[%emt 00:00:06]} 34. Rhh1 {[%clk 00:01:36]} {[%emt
00:00:05]} bxc2 {[%clk 00:02:31]} {[%emt 00:00:23]} 35. Ke3 {[%clk 00:01:46]}
{[%emt 00:00:19]} Qc3+ {[%clk 00:02:03]} {[%emt 00:00:59]} 36. Kf4 {[%clk
00:02:12]} {[%emt 00:00:04]} d4 {[%clk 00:02:12]} {[%emt 00:00:21]} 0-1